Workbook

Sheet Výdavky
B3: Rozpočet podujatia [Názov podujatia]
H4: Výdavky
H6: Odhadované | I6: Skutočné
C7: Celkové výdavky | H7: =SUM(D14,D22,D28,D35,H14,H22,H27) -> 1,145.00 EUR | I7: =SUM(E14,E22,E28,E35,I14,I22,I27) -> 395.00 EUR
C9: Priestory | D9: Odhadované | E9: Skutočné | G9: Občerstvenie | H9: Odhadované | I9: Skutočné
C10: Poplatky za miestnosť a sálu | D10: 500.00 EUR | E10: 250.00 EUR | G10: Strava
C11: Personál priestorov | D11: 400.00 EUR | E11: 50.00 EUR | G11: Nápoje
C12: Vybavenie | G12: Obrusy
C13: Stoly a stoličky | G13: Personál a výpomoc
C14: Celková hodnota | D14: =SUBTOTAL(109,Tabuľka1[Odhadované]) -> 900.00 EUR | E14: =SUBTOTAL(109,Tabuľka1[Skutočné]) -> 300.00 EUR | G14: Celková hodnota | H14: =SUBTOTAL(109,Tabuľka5[Odhadované]) -> 0.00 EUR | I14: =SUBTOTAL(109,Tabuľka5[Skutočné]) -> 0.00 EUR
C16: Výzdoba | D16: Odhadované | E16: Skutočné | G16: Program | H16: Odhadované | I16: Skutočné
C17: Kvety | D17: 200.00 EUR | E17: 50.00 EUR | G17: Vystupujúci
C18: Sviečky | G18: Moderátori
C19: Osvetlenie | G19: Cestovné
C20: Balóny | G20: Hotel
C21: Papierové materiály | G21: Iné
C22: Celková hodnota | D22: =SUBTOTAL(109,Tabuľka2[Odhadované]) -> 200.00 EUR | E22: =SUBTOTAL(109,Tabuľka2[Skutočné]) -> 50.00 EUR | G22: Celková hodnota | H22: =SUBTOTAL(109,Tabuľka6[Odhadované]) -> 0.00 EUR | I22: =SUBTOTAL(109,Tabuľka6[Skutočné]) -> 0.00 EUR
C24: Propagácia | D24: Odhadované | E24: Skutočné | G24: Ceny | H24: Odhadované | I24: Skutočné
C25: Grafické práce | D25: 45.00 EUR | E25: 45.00 EUR | G25: Stuhy, plakety a trofeje
C26: Fotokopírovanie a tlač | G26: Dary
C27: Poštovné | G27: Celková hodnota | H27: =SUBTOTAL(109,Tabuľka7[Odhadované]) -> 0.00 EUR | I27: =SUBTOTAL(109,Tabuľka7[Skutočné]) -> 0.00 EUR
C28: Celková hodnota | D28: =SUBTOTAL(109,Tabuľka3[Odhadované]) -> 45.00 EUR | E28: =SUBTOTAL(109,Tabuľka3[Skutočné]) -> 45.00 EUR
C30: Rôzne | D30: Odhadované | E30: Skutočné
C31: Telefón
C32: Doprava
C33: Kancelárske potreby
C34: Faxové služby
C35: Celková hodnota | D35: =SUBTOTAL(109,Tabuľka4[Odhadované]) -> 0.00 EUR | E35: =SUBTOTAL(109,Tabuľka4[Skutočné]) -> 0.00 EUR

Sheet Príjmy
B3: Rozpočet podujatia [Názov podujatia]
F4: Príjmy
F6: Odhadované | G6: Skutočné
B7: Celkové príjmy | F7: =SUM(F14,F21,F28,F36) -> 1,936.00 EUR | G7: =SUM(G14,G21,G28,G36) -> 1,831.00 EUR
B9: Vstupenky
B10: Odhadované | C10: Skutočné | F10: Odhadované | G10: Skutočné
B11: 300 | C11: 278 | D11: Dospelí | E11: 5.00 EUR | F11: =B11*E11 -> 1,500.00 EUR | G11: =C11*E11 -> 1,390.00 EUR
B12: 197 | C12: 195 | D12: Deti | E12: 2.00 EUR | F12: =B12*E12 -> 394.00 EUR | G12: =C12*E12 -> 390.00 EUR
B13: 42 | C13: 51 | D13: Iné | E13: 1.00 EUR | F13: =B13*E13 -> 42.00 EUR | G13: =C13*E13 -> 51.00 EUR
F14: =SUM(F11:F13) -> 1,936.00 EUR | G14: =SUM(G11:G13) -> 1,831.00 EUR
B16: Reklamy v programe
B17: Odhadované | C17: Skutočné | F17: Odhadované | G17: Skutočné
D18: Titulné strany | F18: =B18*E18 -> 0.00 EUR | G18: =C18*E18 -> 0.00 EUR
D19: Polstrany | F19: =B19*E19 -> 0.00 EUR | G19: =C19*E19 -> 0.00 EUR
D20: Štvrťstrany | F20: =B20*E20 -> 0.00 EUR | G20: =C20*E20 -> 0.00 EUR
F21: =SUM(F18:F20) -> 0.00 EUR | G21: =SUM(G18:G20) -> 0.00 EUR
B23: Vystavovatelia a predajcovia
B24: Odhadované | C24: Skutočné | F24: Odhadované | G24: Skutočné
D25: Veľké stánky | F25: =B25*E25 -> 0.00 EUR | G25: =C25*E25 -> 0.00 EUR
D26: Stredne veľké stánky | F26: =B26*E26 -> 0.00 EUR | G26: =C26*E26 -> 0.00 EUR
D27: Malé stánky | F27: =B27*E27 -> 0.00 EUR | G27: =C27*E27 -> 0.00 EUR
F28: =SUM(F25:F27) -> 0.00 EUR | G28: =SUM(G25:G27) -> 0.00 EUR
B30: Predaj položiek
B31: Odhadované | C31: Skutočné | F31: Odhadované | G31: Skutočné
D32: Položky | F32: =B32*E32 -> 0.00 EUR | G32: =C32*E32 -> 0.00 EUR
D33: Položky | F33: =B33*E33 -> 0.00 EUR | G33: =C33*E33 -> 0.00 EUR
D34: Položky | F34: =B34*E34 -> 0.00 EUR | G34: =C34*E34 -> 0.00 EUR
D35: Položky | F35: =B35*E35 -> 0.00 EUR | G35: =C35*E35 -> 0.00 EUR
F36: =SUM(F32:F35) -> 0.00 EUR | G36: =SUM(G32:G35) -> 0.00 EUR

Sheet Súhrn
B3: Rozpočet podujatia [Názov podujatia]
F4: Súhrn zisku a straty
F6: Odhadované | G6: Skutočné
B7: Celkové príjmy | F7: =Príjmy!F7 -> 1,936.00 EUR | G7: =Príjmy!G7 -> 1,831.00 EUR
B8: Celkové výdavky | F8: =Výdavky!H7 -> 1,145.00 EUR | G8: =Výdavky!I7 -> 395.00 EUR
B9: Celkový zisk (alebo strata) | F9: =F7-F8 -> 791.00 EUR | G9: =G7-G8 -> 1,436.00 EUR
